bitfinex-derivatives/quotes_ETHF0:USTF0_20250507
["timestamp","ask_amount","ask_price","bid_price","bid_amount"]
[1746588445869,5.92956,1824.8,1824.7,2.72942]
[1746588446372,1.09625,1824.5,1824.3,1.1643]
[1746588446575,1.09625,1824.5,1824.4,1.0963]
[1746588446876,4.30405,1824.5,1824.4,1.0963]
[1746588447172,3.2078,1824.5,1824.4,1.0963]
[1746588447369,3.2078,1824.5,1824.4,2.8326]
[1746588447572,5.94374,1824.5,1824.4,2.8326]
[1746588447869,5.94374,1824.5,1824.4,1.0963]
[1746588448264,4.8475,1824.5,1824.4,1.0963]
[1746588448671,1.6397,1824.5,1824.4,1.0963]
[1746588449067,1.157,1824.6,1824.5,1.09624]
[1746588449673,3.89488,1824.6,1824.5,1.09624]
[1746588449871,2.7987,1824.6,1824.5,1.09624]
[1746588450072,3.89488,1824.6,1824.5,1.09624]
[1746588451176,2.7987,1824.6,1824.5,1.09624]
[1746588451979,2.8056813,1824.6,1824.5,1.09624]
[1746588452169,3.9018613,1824.6,1824.5,1.09624]
[1746588452480,2.8056813,1824.6,1824.5,1.09624]
[1746588453179,1.6486813,1824.6,1824.5,1.09624]
[1746588454077,2.7448613,1824.6,1824.5,1.09624]
[1746588455383,1.6486813,1824.6,1824.5,1.09624]
[1746588456984,2.7448613,1824.6,1824.5,1.09624]
[1746588457186,1.6486813,1824.6,1824.5,1.09624]
[1746588457585,1.6486813,1824.6,1824.5,2.19824]
[1746588458089,2.7448613,1824.6,1824.5,1.09624]
[1746588458285,3.8582613,1824.6,1824.5,1.09624]
[1746588459991,1.09624,1824.5,1824.4,2.75204]
[1746588460192,4.9365,1824.5,1824.4,1.09624]
[1746588460691,4.9365,1824.5,1824.2,2.8528]
[1746588460887,1.09646,1824.2,1824.1,1.09646]
[1746588461394,3.82966,1824.2,1824.1,1.09646]
[1746588461694,1.0966,1824.0,1823.7,8.693]
[1746588461995,3.2078,1823.9,1823.8,2.84676]
[1746588462494,6.0186,1823.9,1823.8,2.84676]
[1746588463389,5.38944,1824.2,1824.1,1.09648]
[1746588463694,7.03744,1824.2,1824.1,1.09648]
[1746588464100,9.541,1824.2,1824.1,1.09648]
[1746588464495,3.6,1824.2,1824.1,2.69188]
[1746588464795,3.6,1824.2,1824.1,3.78048]
[1746588465194,2.74981,1824.3,1824.2,1.09642]
[1746588465495,1.6534,1824.3,1824.2,1.09642]
[1746588465896,1.6534,1824.3,1824.2,2.69182]
[1746588466486,2.74976,1824.3,1824.2,2.69182]
[1746588466693,1.09642,1824.2,1824.1,1.09644]
[1746588466891,3.88162,1824.2,1824.1,1.09644]
[1746588467091,7.08942,1824.2,1824.1,1.09644]
[1746588468198,1.09648,1824.1,1824.0,3.84612]
[1746588468402,1.6282,1824.1,1824.0,2.69192]
[1746588468695,3.88998,1824.1,1824.0,2.69192]
[1746588468891,2.7935,1824.1,1824.0,2.69192]
[1746588471405,3.2078,1824.2,1824.1,1.09648]
[1746588471595,3.2078,1824.2,1824.1,3.91008]
[1746588471902,2.74592,1824.4,1824.3,1.09636]
[1746588472094,4.69632,1824.4,1824.3,1.09636]
[1746588472294,3.6,1824.4,1824.3,1.09636]
[1746588472495,3.6,1824.4,1824.2,1.6837]
[1746588472694,4.69636,1824.4,1824.3,1.09636]
[1746588473103,1.09636,1824.4,1824.3,1.09636]
[1746588473603,1.09636,1824.4,1824.2,3.96347]
[1746588473803,4.30416,1824.4,1824.2,3.96347]
[1746588474003,1.09636,1824.3,1824.2,3.96347]
[1746588474612,3.2078,1824.4,1824.2,2.8671]
[1746588474905,3.2078,1824.4,1824.3,1.588]
[1746588474906,4.3041,1824.4,1824.3,1.588]
[1746588475204,4.3041,1824.4,1824.3,2.68436]
[1746588475404,1.09636,1824.3,1824.2,2.27978]
[1746588475797,1.09636,1824.3,1824.2,3.86778]
[1746588476297,4.30415,1824.4,1824.3,1.09636]
[1746588476700,3.2078,1824.4,1824.2,2.7714]
[1746588476907,1.09636,1824.3,1824.2,2.7714]
[1746588477107,1.09636,1824.3,1824.2,3.86782]
[1746588479009,3.2078,1824.4,1824.3,1.09636]
[1746588479210,3.2078,1824.4,1824.3,2.74736]
[1746588479603,0.0069813,1824.6,1824.5,1.09624]
[1746588480103,0.0069813,1824.6,1824.5,2.74724]
[1746588480812,4.3109613,1824.6,1824.5,2.74724]
[1746588481111,3.2147813,1824.6,1824.5,2.74724]
[1746588482499,0.0069813,1824.6,1824.5,2.74724]
[1746588488412,4.351,1825.0,1824.9,1.096]
[1746588488806,1.98063,1825.1,1825.0,1.09594]
[1746588489312,0.8847,1825.1,1825.0,1.09594]
[1746588489613,1.09599,1825.0,1824.9,1.09599]
[1746588489811,4.30379,1825.0,1824.9,1.09599]
[1746588490012,1.096,1824.9,1824.8,2.01562]
[1746588490217,3.2078,1825.0,1824.9,1.096]
[1746588490512,4.30379,1825.0,1824.9,1.096]
[1746588490701,3.2078,1825.0,1824.9,1.096]
[1746588490904,3.2078,1825.0,1824.9,2.7919]
[1746588493309,3.69649,1825.1,1825.0,1.09594]
[1746588493515,2.6006,1825.1,1825.0,1.09594]
[1746588495420,1.7159,1825.1,1825.0,1.09594]
[1746588496021,1.09594,1825.0,1824.9,2.79188]
[1746588496213,2.00314,1825.0,1824.9,1.09598]
[1746588497110,1.096,1824.9,1824.8,0.9196]
[1746588497309,1.0961,1824.8,1824.4,13.24781551]
[1746588497516,2.0363,1824.8,1824.7,1.09612]
[1746588497818,5.2441,1824.8,1824.7,1.09612]
[1746588498415,4.148,1824.8,1824.6,1.09615]
[1746588498617,5.24412,1824.8,1824.6,1.09615]
[1746588499119,8.84412,1824.8,1824.6,1.09615]
[1746588499314,1.09612,1824.7,1824.6,1.09615]
[1746588500117,4.69612,1824.7,1824.6,1.09615]
[1746588500528,8.6,1824.7,1824.1,2.74117]
[1746588500822,5.19202,1824.6,1824.5,1.09624]
[1746588501321,8.79202,1824.6,1824.5,1.09624]
[1746588501818,8.79202,1824.6,1824.4,1.09626]
[1746588502019,8.79202,1824.6,1824.5,1.09624]
[1746588502621,7.6958,1824.6,1824.5,1.09624]
[1746588502812,8.79198,1824.6,1824.5,1.09624]
[1746588504119,5.19198,1824.6,1824.5,1.09624]
[1746588504816,1.09624,1824.5,1824.4,4.61285]
[1746588507621,1.09624,1824.5,1824.4,3.5166]
[1746588508019,2.00924,1824.5,1824.4,1.679]
[1746588508626,2.00924,1824.5,1824.4,2.7753]
[1746588510128,2.00924,1824.5,1824.4,1.679]
[1746588510425,2.00924,1824.5,1824.4,2.7753]
[1746588510919,0.913,1824.5,1824.4,2.7753]
[1746588511121,2.00924,1824.5,1824.4,2.7753]
[1746588511522,3.66174,1824.5,1824.4,2.7753]
[1746588512226,3.66174,1824.5,1824.4,1.679]
[1746588512424,3.66174,1824.5,1824.4,2.7753]
[1746588513821,2.74874,1824.5,1824.4,2.7753]
[1746588514626,1.6525,1824.5,1824.4,2.7753]
[1746588514927,1.09624,1824.5,1824.4,2.7753]
[1746588515426,6.82482,1824.6,1824.5,1.09624]
[1746588515623,6.82482,1824.6,1824.5,2.71254]
[1746588515927,4.8406,1824.6,1824.5,2.71254]
[1746588516122,5.93678,1824.6,1824.5,2.71254]
[1746588517024,5.93678,1824.6,1824.5,1.6163]
[1746588517419,1.09634,1824.4,1824.3,1.09633]
[1746588517621,1.09634,1824.4,1824.3,2.74103]
[1746588519830,4.30414,1824.4,1824.3,2.74103]
[1746588520532,3.2078,1824.4,1824.3,2.74103]
[1746588520930,4.3041,1824.4,1824.3,2.74103]
[1746588521230,3.2078,1824.4,1824.3,2.74103]
[1746588521429,4.3041,1824.4,1824.3,2.74103]
[1746588522032,3.2078,1824.4,1824.3,2.74103]
[1746588523627,4.30402,1824.6,1824.5,1.09624]
[1746588524132,4.30402,1824.6,1824.5,2.99914]
[1746588524631,4.30402,1824.6,1824.5,1.9029]
[1746588524829,6.00502,1824.6,1824.5,1.9029]
[1746588525431,6.00502,1824.6,1824.5,2.99914]
[1746588526133,4.9088,1824.6,1824.5,2.99914]
[1746588528641,3.2078,1824.8,1824.6,1.09618]
[1746588528836,3.2078,1824.8,1824.7,1.09612]
[1746588529335,3.2078,1824.8,1824.7,2.72762]
[1746588531338,4.30386,1824.8,1824.7,2.72762]
[1746588532138,3.2078,1824.8,1824.7,2.72762]
[1746588534344,4.30386,1824.8,1824.7,1.09612]
[1746588534532,4.8388,1824.8,1824.5,6.28139]
[1746588534735,4.8388,1824.8,1824.7,1.09612]
[1746588534936,5.93486,1824.8,1824.7,1.09612]
[1746588535140,4.8388,1824.8,1824.7,1.09612]
[1746588535739,5.93486,1824.8,1824.7,1.09612]
[1746588536434,4.8388,1824.8,1824.7,1.09612]
[1746588536634,3.2078,1824.8,1824.7,1.09612]
[1746588537144,4.30386,1824.8,1824.7,1.09612]
[1746588537340,5.94446,1824.8,1824.7,1.09612]
[1746588537542,6.83416,1824.8,1824.7,1.09612]
[1746588538040,10.7381,1824.8,1824.3,14.37815551]
[1746588538340,3.2078,1824.5,1824.4,1.0963]
[1746588538643,3.2078,1824.5,1824.4,2.6867]
[1746588538944,5.94464,1824.5,1824.4,2.6867]
[1746588541137,4.8484,1824.5,1824.4,2.6867]
[1746588542743,5.94464,1824.5,1824.4,2.6867]
[1746588543143,0.8809,1824.6,1824.5,1.09624]
[1746588543347,4.30393,1824.7,1824.6,1.09618]
[1746588543547,4.30393,1824.7,1824.6,2.88428]
[1746588543847,3.2078,1824.7,1824.6,2.88428]
[1746588544945,4.30392,1824.7,1824.6,2.88428]
[1746588545149,3.2078,1824.7,1824.6,2.88428]
[1746588550151,9.2305,1824.9,1824.8,1.09606]
[1746588550647,10.3265,1824.9,1824.8,1.09606]
[1746588550839,9.2305,1824.9,1824.8,1.09606]
[1746588551149,10.3265,1824.9,1824.8,1.09606]
[1746588553349,7.1187,1824.9,1824.8,1.09606]
[1746588553549,10.3265,1824.9,1824.8,1.09606]
[1746588556454,3.2078,1824.9,1824.8,1.09606]
[1746588556952,5.9429,1824.9,1824.8,1.09606]
[1746588566851,5.9429,1824.9,1824.7,1.6051]
[1746588566852,1.09606,1824.8,1824.7,1.6051]
[1746588567053,2.75896,1824.8,1824.7,1.6051]
[1746588567952,2.75896,1824.8,1824.7,2.70122]
[1746588569957,2.75896,1824.8,1824.7,1.6051]
[1746588570159,2.75896,1824.8,1824.7,2.70122]
[1746588570961,2.75896,1824.8,1824.7,1.09612]
[1746588571158,2.75896,1824.8,1824.6,1.7881]
[1746588571159,1.09612,1824.7,1824.6,1.7881]
[1746588571359,6.00392,1824.7,1824.6,1.7881]
[1746588571561,6.00392,1824.7,1824.6,2.88428]
[1746588572764,1.09618,1824.6,1824.5,2.83449]
[1746588572964,2.79618,1824.6,1824.5,2.83449]
[1746588576673,4.30397,1824.7,1824.6,1.09618]
[1746588576872,6.04457,1824.7,1824.6,1.09618]
[1746588579275,9.64457,1824.7,1824.6,1.09618]
[1746588580277,6.04457,1824.7,1824.6,1.09618]
[1746588581177,3.2078,1824.7,1824.6,1.09618]
[1746588585068,4.65404,1825.1,1825.0,1.09587]
[1746588585069,4.335,1825.1,1825.0,1.09587]
[1746588585365,16.57073,1825.1,1825.0,1.09587]
[1746588589476,12.23873,1825.1,1825.0,1.09587]
[1746588589874,13.84443,1825.1,1825.0,1.09587]
[1746588590178,1.09594,1825.0,1824.9,1.6072]
[1746588590381,1.096,1824.9,1824.8,2.96531]
[1746588590678,4.3038,1824.9,1824.8,2.96531]
[1746588590873,5.9095,1824.9,1824.8,2.96531]
[1746588591070,9.5095,1824.9,1824.8,2.96531]
[1746588592174,9.5095,1824.9,1824.8,1.8693]
[1746588592478,1.09606,1824.8,1824.7,1.6014]
[1746588592680,2.71886,1824.8,1824.7,1.6014]
[1746588593082,6.31886,1824.8,1824.7,1.6014]
[1746588593483,6.31886,1824.8,1824.7,2.69747]
[1746588593779,3.6,1824.8,1824.7,2.69747]
[1746588595181,3.2078,1824.9,1824.8,1.09606]
[1746588595387,3.2078,1824.9,1824.8,2.80236]
[1746588596079,2.71877,1825.0,1824.9,1.096]
[1746588596280,2.71877,1825.0,1824.9,4.6602]
[1746588597185,6.31877,1825.0,1824.9,4.6602]
[1746588597488,5.2228,1825.0,1824.9,4.6602]
[1746588597982,5.2228,1825.0,1824.9,1.096]
[1746588598389,5.2228,1825.0,1824.9,2.6921]
[1746588598575,6.31874,1825.0,1824.9,2.6921]
[1746588599184,5.2228,1825.0,1824.9,2.6921]
[1746588599887,3.6,1825.0,1824.9,2.6921]
[1746588601090,2.73927,1825.4,1824.9,2.6921]
[1746588601091,5.93976,1825.3,1825.2,1.09582]
[1746588601387,4.844,1825.3,1825.2,1.09582]
[1746588601684,5.93976,1825.3,1825.2,1.09582]
[1746588602079,9.53981,1825.3,1825.2,1.09582]
[1746588604187,1.09582,1825.2,1825.1,1.6224]
[1746588604393,1.09594,1825.0,1824.9,1.99696]
[1746588604577,1.6785,1825.2,1824.8,3.70303]
[1746588604578,1.096,1824.9,1824.8,3.70303]
[1746588604783,2.7745,1824.9,1824.8,3.70303]
[1746588605090,6.3745,1824.9,1824.8,1.09603]
[1746588608089,5.2785,1824.9,1824.8,2.72253]
[1746588608390,3.6,1824.9,1824.8,2.72253]
[1746588609189,1.09594,1825.0,1824.9,1.096]
[1746588609388,1.09594,1825.0,1824.9,2.0618]
[1746588610489,3.2078,1825.1,1825.0,1.09594]
[1746588610690,6.0445,1825.3,1825.0,0.9715]
[1746588610994,7.14029,1825.3,1825.2,1.09582]
[1746588611186,1.09588,1825.1,1825.0,2.06741]
[1746588611387,1.09594,1825.0,1824.9,2.06179]
[1746588611587,1.09594,1825.0,1824.9,0.9658]
[1746588612085,4.69594,1825.0,1824.9,1.096]
[1746588612487,6.40944,1825.0,1824.9,1.096]
[1746588612993,1.096,1824.9,1824.8,2.06752]
[1746588613396,2.8027,1824.9,1824.8,0.9715]
[1746588613590,1.09606,1824.8,1824.7,5.19197]
[1746588613793,1.09606,1824.8,1824.7,1.98417]
[1746588614085,1.09606,1824.8,1824.7,0.8881]
[1746588614289,2.80276,1824.8,1824.7,0.8881]
[1746588614491,4.64996,1824.8,1824.7,0.8881]
[1746588614693,1.7067,1824.8,1824.7,1.98422]
[1746588614892,1.09599,1825.0,1824.9,1.096]
[1746588615092,4.69599,1825.0,1824.9,1.096]
[1746588615302,3.6,1825.0,1824.9,1.096]
[1746588616101,6.40258,1825.1,1825.0,1.09594]
[1746588616400,5.3067,1825.1,1825.0,1.09594]
[1746588617302,5.3067,1825.1,1825.0,1.99904]
[1746588617898,3.6,1825.1,1825.0,1.99904]
[1746588618099,2.71133,1825.2,1825.1,1.09588]
[1746588619104,6.31133,1825.2,1825.1,1.09588]
[1746588619804,1.09588,1825.1,1825.0,0.9031]
[1746588620005,1.096,1825.0,1824.9,1.09599]
[1746588620502,2.6933,1825.0,1824.9,2.06589]
[1746588620706,1.5973,1825.0,1824.9,2.06589]
[1746588621003,2.69324,1825.0,1824.9,2.06589]
[1746588621205,6.29324,1825.0,1824.9,2.06589]
[1746588621402,5.1973,1825.0,1824.9,2.06589]
[1746588621709,3.6,1825.0,1824.9,3.67109]
[1746588623098,1.5973,1825.2,1825.0,1.0959]
[1746588623400,1.09591,1825.1,1825.0,2.7092]
[1746588623615,1.09594,1825.0,1824.9,1.09596]
[1746588623811,3.67744,1825.0,1824.9,1.09596]
[1746588624105,4.57814,1825.0,1824.9,1.09596]
[1746588625103,8.17814,1825.0,1824.9,1.09596]
[1746588625510,7.0822,1825.0,1824.9,1.09596]
[1746588625805,7.0822,1825.0,1824.9,2.68476]
[1746588627412,6.111,1825.0,1824.9,2.68476]
[1746588628312,3.6,1825.0,1824.9,2.68476]
[1746588629108,7.90369,1825.1,1825.0,1.09594]
[1746588629309,7.90369,1825.1,1825.0,2.75924]
[1746588630309,9.54559,1825.1,1825.0,2.75924]
[1746588630611,1.09598,1825.0,1824.9,1.09595]
[1746588630911,2.73788,1825.0,1824.9,1.09595]
[1746588631110,6.33788,1825.0,1824.9,2.75925]
[1746588631817,1.096,1824.9,1824.8,1.09603]
[1746588632111,7.1177,1824.9,1824.8,1.09603]
[1746588632315,7.1177,1824.9,1824.8,2.72773]
[1746588632614,6.1932,1824.9,1824.8,2.72773]
[1746588633110,3.6,1824.9,1824.8,2.72773]
[1746588634213,5.94772,1825.1,1825.0,1.09594]
[1746588634807,5.94772,1825.1,1825.0,2.69714]
[1746588635112,2.73992,1825.1,1825.0,2.69714]
[1746588635313,6.33992,1825.1,1825.0,2.69714]
[1746588637317,9.54772,1825.1,1825.0,1.6012]
[1746588638016,5.244,1825.1,1825.0,2.69714]
[1746588638316,1.644,1825.1,1825.0,2.69714]
[1746588638719,8.8752,1825.2,1825.1,1.09588]
[1746588639018,3.6,1825.2,1825.1,2.84148]
[1746588640219,5.98356,1825.3,1825.2,1.09582]
[1746588640418,5.98356,1825.3,1825.2,2.84142]
[1746588640820,2.77576,1825.3,1825.2,2.84142]
[1746588641218,6.37576,1825.3,1825.2,2.84142]
[1746588643021,3.6,1825.3,1825.2,2.84142]
[1746588643423,4.30344,1825.5,1825.4,1.0957]
[1746588643608,1.0957,1825.4,1825.3,1.6759]
[1746588643814,2.7318,1825.4,1825.3,1.6759]
[1746588644020,1.6361,1825.4,1825.3,2.77166]
[1746588646116,4.30344,1825.5,1825.4,1.0957]
[1746588646317,4.30344,1825.5,1825.4,2.7716]
[1746588646526,5.93954,1825.5,1825.4,2.7716]
[1746588647225,9.53954,1825.5,1825.4,2.7716]
[1746588647622,9.53954,1825.5,1825.4,1.0957]
[1746588649119,8.4439,1825.5,1825.4,1.0957]
[1746588649823,9.53954,1825.5,1825.4,1.0957]
[1746588650626,6.33174,1825.5,1825.4,1.0957]
[1746588651721,1.09576,1825.4,1825.3,1.09574]
[1746588651928,2.70616,1825.4,1825.3,1.09574]
[1746588654127,6.30616,1825.4,1825.3,1.09574]
[1746588654631,6.30616,1825.4,1825.3,2.70914]
[1746588656032,6.30616,1825.4,1825.3,1.09574]
[1746588657732,1.09576,1825.3,1825.2,4.60218]
[1746588658030,2.78316,1825.3,1825.2,4.60218]
[1746588658225,1.6874,1825.3,1825.2,4.60218]
[1746588659531,1.09574,1825.4,1825.2,4.60218]
[1746588659532,1.09574,1825.4,1825.3,1.09576]
[1746588659731,1.09574,1825.4,1825.3,2.71386]
[1746588660127,4.69574,1825.4,1825.3,2.71386]
[1746588660634,6.33424,1825.4,1825.3,2.71386]
[1746588661833,1.09586,1825.2,1825.1,1.09585]
[1746588662622,1.09586,1825.2,1825.1,2.73105]
[1746588663127,7.74201,1825.3,1825.2,1.09582]
[1746588663321,7.74201,1825.3,1825.2,2.73102]
[1746588663621,4.53421,1825.3,1825.2,2.73102]
[1746588664131,8.13421,1825.3,1825.2,2.73102]
[1746588664827,8.13421,1825.3,1825.2,1.6352]
[1746588665031,1.09588,1825.1,1825.0,4.52634]
[1746588666231,2.78537,1825.2,1825.1,1.09588]
[1746588666431,2.78537,1825.2,1825.1,2.70578]
[1746588667433,2.78537,1825.2,1825.1,1.6099]
[1746588667625,6.38537,1825.2,1825.1,1.6099]
[1746588670123,3.6,1825.2,1824.6,7.29925551]
[1746588670323,1.09606,1824.8,1824.7,1.6285]
[1746588670628,1.09612,1824.7,1824.6,7.29925551]
[1746588670827,4.65522,1824.7,1824.6,7.29925551]
[1746588671136,8.25522,1824.7,1824.6,7.29925551]
[1746588672232,1.09624,1824.5,1824.4,1.09626]
[1746588672623,1.0963,1824.4,1824.3,2.666]
[1746588672826,1.09642,1824.2,1824.1,7.29925551]
[1746588673025,4.30422,1824.2,1824.1,9.05425551]
[1746588673224,4.30422,1824.2,1824.1,10.15073551]
[1746588673426,6.02332,1824.2,1824.1,7.29925551]
[1746588674133,9.62332,1824.2,1824.1,7.29925551]
[1746588674632,8.5269,1824.2,1824.1,7.29925551]
[1746588674833,8.5269,1824.2,1824.1,8.39573551]
[1746588675035,8.5269,1824.2,1824.1,10.01183551]
[1746588675627,6.8078,1824.2,1824.1,10.01183551]
[1746588675839,7.90422,1824.2,1824.1,1.6161]
[1746588676033,10.47332,1824.2,1824.1,1.6161]
[1746588676230,1.09648,1824.1,1823.8,3.2078]
[1746588676534,1.6804,1824.1,1824.0,1.09654]
[1746588677133,5.2804,1824.1,1824.0,1.09654]
[1746588677334,5.2804,1824.1,1824.0,2.77624]
[1746588678134,6.37688,1824.1,1824.0,2.77624]
[1746588678334,5.2804,1824.1,1824.0,2.77624]
[1746588679433,6.37688,1824.1,1824.0,1.6797]
[1746588679629,1.09654,1824.0,1823.9,0.8754]
[1746588679829,1.0966,1823.9,1823.8,1.0966]
[1746588680034,1.0966,1823.9,1823.8,2.7763]
[1746588680238,6.3097,1823.9,1823.8,2.7763]
[1746588680436,5.2131,1823.9,1823.8,2.7763]
[1746588680735,3.6,1823.9,1823.8,5.9841]
[1746588681033,3.2078,1824.4,1824.3,1.09636]
[1746588681734,3.2078,1824.4,1824.3,2.69626]
[1746588682233,6.8078,1824.4,1824.3,2.69626]
[1746588682634,3.6,1824.4,1824.3,2.69626]
[1746588683136,1.09629,1824.5,1824.4,1.0963]
[1746588683338,1.09629,1824.5,1824.4,2.7465]
[1746588683830,1.09629,1824.5,1824.4,1.6502]
[1746588684036,1.09658,1824.0,1823.6,2.74196]
[1746588684235,1.09658,1824.0,1823.9,1.6502]
[1746588684937,1.09658,1824.0,1823.9,2.7468]
[1746588685138,4.69658,1824.0,1823.9,2.7468]
[1746588685640,4.69658,1824.0,1823.9,1.6502]
[1746588686336,7.90438,1824.0,1823.9,1.6502]
[1746588686536,1.09666,1823.9,1823.8,2.71596]
[1746588686743,2.78616,1823.9,1823.8,2.71596]
[1746588687042,2.78616,1823.9,1823.8,1.6193]
[1746588687243,6.38616,1823.9,1823.8,1.6193]
[1746588688242,6.38616,1823.9,1823.8,2.71596]
[1746588689143,2.78616,1823.9,1823.8,2.71596]
[1746588689643,6.8078,1824.0,1823.9,1.0966]
[1746588689946,2.84290088,1824.0,1823.9,2.8111]
[1746588690143,1.09632,1824.4,1824.2,1.09637]
[1746588690341,1.09636,1824.3,1824.2,1.09637]
[1746588690542,4.30416,1824.3,1824.2,1.09637]
[1746588691041,3.2078,1824.3,1823.9,6.3415]
[1746588691245,4.30418,1824.3,1824.2,1.09642]
[1746588692146,7.90418,1824.3,1824.2,1.09642]
[1746588692647,6.8078,1824.3,1824.2,1.09642]
[1746588692846,7.90416,1824.3,1824.2,1.09642]
[1746588693046,6.8078,1824.3,1824.2,1.09642]
[1746588693346,3.2078,1824.3,1824.2,1.09642]
[1746588693748,1.09636,1824.3,1824.2,1.09642]
[1746588694148,1.09634,1824.4,1824.3,1.09636]
[1746588695247,4.69634,1824.4,1824.3,1.09636]
[1746588695848,7.90414,1824.4,1824.3,1.09636]
[1746588697550,4.69634,1824.4,1824.3,1.09636]
[1746588697751,3.6,1824.4,1824.3,1.09636]
[1746588698144,4.32,1824.6,1824.5,1.09624]
[1746588698351,5.41618,1824.6,1824.5,1.09624]
[1746588699153,9.01618,1824.6,1824.5,1.09624]
[1746588699852,7.92,1824.6,1824.5,1.09624]
[1746588700150,9.01618,1824.6,1824.5,1.09624]
[1746588700555,3.6,1824.6,1824.5,1.09624]
[1746588701148,4.30391,1824.8,1824.7,1.09612]
[1746588701347,4.30386,1824.8,1824.7,1.09612]
[1746588701551,3.2078,1824.8,1824.7,1.09612]
[1746588701752,1.99312,1825.1,1825.0,1.09594]
[1746588702252,5.59312,1825.1,1825.0,1.09594]
[1746588702451,7.19902,1825.1,1825.0,1.09594]
[1746588702655,7.19902,1825.1,1824.9,1.09595]
[1746588702843,10.40682,1825.1,1825.0,1.5955]
[1746588703353,10.40682,1825.1,1825.0,2.69144]
[1746588706152,9.3109,1825.1,1825.0,2.69144]
[1746588706362,6.8078,1825.1,1825.0,2.69144]
[1746588707247,3.2078,1825.1,1825.0,2.69144]
[1746588707851,7.15333,1825.2,1825.1,1.09588]
[1746588708054,7.15333,1825.2,1825.1,2.75828]
[1746588708259,10.75333,1825.2,1825.1,2.75828]
[1746588711362,3.6,1825.2,1825.1,2.75828]
[1746588711554,3.6,1825.2,1825.1,3.63548]
[1746588711755,4.69582,1825.2,1825.1,3.63548]
[1746588711957,3.6,1825.2,1825.1,3.63548]
[1746588712456,6.34732,1825.2,1825.1,3.63548]
[1746588712652,1.09603,1824.9,1824.6,3.2078]
[1746588712859,1.09601,1824.9,1824.8,1.09605]
[1746588713263,2.5666,1825.0,1824.8,2.77335]
[1746588713264,3.66259,1825.0,1824.8,2.77335]
[1746588713566,1.096,1824.9,1824.8,1.6773]
[1746588713861,1.6832,1824.9,1824.6,4.30395]
[1746588714056,1.97071,1824.8,1824.6,6.82075]
[1746588714258,1.6832,1824.7,1824.6,6.82075]
[1746588714958,2.77932,1824.7,1824.6,5.7246]
[1746588715164,6.37932,1824.7,1824.6,6.82078]
[1746588715564,3.6,1824.7,1824.6,6.82078]
[1746588716369,6.37925,1824.9,1824.8,1.09606]
[1746588716863,5.2832,1824.9,1824.7,1.6114]
[1746588717065,1.09606,1824.8,1824.7,2.70748]
[1746588717663,1.09606,1824.8,1824.7,1.6114]
[1746588717865,1.09612,1824.7,1824.6,4.1132]
[1746588718355,1.09612,1824.7,1824.6,5.7841]
[1746588718559,2.74492,1824.7,1824.6,5.7841]
[1746588719159,6.34492,1824.7,1824.6,6.88028]
[1746588720468,4.69612,1824.7,1824.6,6.88028]
[1746588721771,3.6,1824.7,1824.6,6.88028]
[1746588722163,4.315,1825.1,1824.7,2.7402]
[1746588722368,4.315,1825.1,1825.0,1.09594]
[1746588722859,5.4109,1825.1,1825.0,1.09594]
[1746588723065,9.0109,1825.1,1825.0,1.09594]
[1746588723573,3.6,1825.1,1825.0,1.09594]
[1746588723770,3.6,1825.1,1825.0,2.80684]
[1746588724369,1.09588,1825.1,1825.0,2.80684]
[1746588724573,2.79377,1825.2,1825.1,1.09588]
[1746588724770,2.79377,1825.2,1825.1,2.80678]
[1746588725065,1.09588,1825.1,1825.0,1.09589]
[1746588725268,2.77408,1825.1,1825.0,1.09589]
[1746588725769,2.77408,1825.1,1825.0,2.80679]
[1746588725971,3.6,1825.2,1825.1,1.09588]
[1746588726271,1.0958,1825.3,1825.2,1.09582]
[1746588726467,3.2078,1825.4,1825.3,1.09576]
[1746588726673,1.09567,1825.5,1825.3,3.60982]
[1746588726865,1.09576,1825.3,1825.2,0.9494]
[1746588727376,2.82706,1825.3,1825.2,0.9494]
[1746588727674,1.7313,1825.3,1825.1,1.09586]
[1746588727971,2.82713,1825.2,1825.1,1.09586]
[1746588728476,1.7313,1825.2,1825.0,2.73048]
[1746588728674,2.82713,1825.2,1825.1,1.09588]
[1746588729070,6.42713,1825.2,1825.1,1.09588]
[1746588729471,5.3313,1825.2,1825.1,1.09588]
[1746588732672,6.42712,1825.2,1825.1,1.09588]
[1746588732973,1.09588,1825.1,1825.0,2.73053]
[1746588733177,3.60518,1825.1,1825.0,2.73053]
[1746588733872,1.09597,1825.0,1824.9,1.096]
[1746588734072,1.5881,1825.0,1824.9,2.7229]
[1746588735067,5.1881,1825.0,1824.9,2.7229]
[1746588735273,3.6,1825.0,1824.9,2.7229]
[1746588736070,1.096,1824.9,1824.8,6.10434]
[1746588736274,1.096,1824.9,1824.8,3.2078]
[1746588736579,1.09618,1824.6,1824.5,3.5376]
[1746588737277,1.09624,1824.5,1824.4,1.09626]
[1746588737670,1.09624,1824.5,1824.4,2.81416]
[1746588738177,4.69624,1824.5,1824.4,2.81416]
[1746588738379,6.35274,1824.5,1824.4,2.81416]
[1746588739175,5.2565,1824.5,1824.4,2.81416]
[1746588739383,3.6,1824.5,1824.4,6.02196]
[1746588740071,2.7526,1824.8,1824.6,1.09613]